Workbook

Sheet PAGADAS 2025
A2: RELACION DE FACTURAS PAGADAS DEL 01 AL 31 DE DICIEMBRE 2025
A5: No. | B5: FECHA DE FACTURA | C5: NO. DE FACTURA O COMPROBANTE | D5: No. TRANSF. | E5: SUPLIDOR | F5: CONCEPTO | G5: FUENTE DE FINANCIAMIENTO | H5: MONTO FACTURA | I5: MONTO PAGADO | J5: MONTO PENDIENTE | K5: FECHA FIN DE FACTURA | L5: ESTADO
A6: 1 | B6: 2025-05-14 | C6: 6947 | D6: 41264462289 | E6: ZEN PHARMACEUTICAL SRL | F6: Útiles menores médico quirúrgicos | G6: VS | H6: 247,281.20 | I6: 247,281.20 | J6: 0 | K6: 2025-12-03 | L6: PAGADA
A7: 2 | B7: 2025-07-09 | C7: 1028174 | D7: 41264474523 | E7: ALMANZSAR ESTEVEZ SRL | F7: Reactivos del laboratorio | G7: VS | H7: 29,240.58 | I7: 29,240.58 | J7: 0 | K7: 2025-12-03 | L7: PAGADA | M7: =H6+H7 -> 276,521.78
A8: 3 | B8: 2025-08-01 | C8: 1028236 | D8: 41264481844 | E8: ALMANZSAR ESTEVEZ SRL | F8: Reactivos del laboratorio | G8: VS | H8: 44,827.02 | I8: 44,827.02 | J8: 0 | K8: 2025-12-03 | L8: PAGADA | M8: =H8 -> 44,827.02
A9: 4 | B9: 2025-08-27 | C9: 1028315 | D9: 41264487464 | E9: ALMANZSAR ESTEVEZ SRL | F9: Reactivos del laboratorio | G9: VS | H9: 23,155.26 | I9: 23,155.26 | J9: 0 | K9: 2025-12-03 | L9: PAGADA
A10: 5 | B10: 2024-03-14 | C10: 107127 | D10: 41264521508 | E10: AIR LIQUIDE DOMINICANA SAS | F10: Oxigeno Medicinal | G10: VS | H10: 520,640.07 | I10: 520,640.07 | J10: 0 | K10: 2025-12-03 | L10: PAGADA | M10: =H9+H10 -> 543,795.33
A11: 6 | B11: 2024-03-20 | C11: 107438 | D11: 41264531356 | E11: AIR LIQUIDE DOMINICANA SAS | F11: Oxigeno Medicinal | G11: VS | H11: 7,961.81 | I11: 7,961.81 | J11: 0 | K11: 2025-12-03 | L11: PAGADA
A12: 7 | B12: 2024-03-26 | C12: 107856 | D12: 41264543081 | E12: AIR LIQUIDE DOMINICANA SAS | F12: Oxigeno Medicinal | G12: VS | H12: 754,403.26 | I12: 754,403.26 | J12: 0 | K12: 2025-12-03 | L12: PAGADA
A13: 8 | B13: 2025-07-17 | C13: 11845 | D13: 41264560794 | E13: HEXAPOWER PHARMA SRL | F13: Productos medicinales para uso humano | G13: VS | H13: 247,700.00 | I13: 247,700.00 | J13: 0 | K13: 2025-12-03 | L13: PAGADA | M13: =H11+H12+H13 -> 1,010,065.07
A14: 9 | B14: 2025-07-08 | C14: 9980 | D14: 41264575597 | E14: COPEM HOSPICLINIC SRL | F14: Productos medicinales para uso humano | G14: VS | H14: 231,000.00 | I14: 231,000.00 | J14: 0 | K14: 2025-12-03 | L14: PAGADA
A15: 10 | B15: 2025-07-22 | C15: 175 | D15: 41264594215 | E15: RADLAFE GROUP SRL | F15: Útiles menores médico quirúrgicos | G15: VS | H15: 7,896.00 | I15: 7,896.00 | J15: 0 | K15: 2025-12-03 | L15: PAGADA | M15: =H14+H15 -> 238,896.00
A16: 11 | B16: 2025-08-15 | C16: 195 | D16: 41264602968 | E16: RADLAFE GROUP SRL | F16: Útiles menores médico quirúrgicos | G16: VS | H16: 231,565.00 | I16: 231,565.00 | K16: 2025-12-03 | L16: PAGADA
A17: 12 | B17: 2025-08-13 | C17: 750 | D17: 41264632237 | E17: HAUSPITAL SRL | F17: Útiles menores médico quirúrgicos | G17: VS | H17: 87,556.00 | I17: 87,556.00 | J17: 0 | K17: 2025-12-03 | L17: PAGADA
A18: 13 | B18: 2025-07-14 | C18: 10009456 | D18: 41264640301 | E18: VEGA ABREU CLEAN SRL | F18: Útiles y Materiales de Limpieza | G18: VS | H18: 215,771.50 | I18: 215,771.50 | J18: 0 | K18: 2025-12-03 | L18: PAGADA | M18: =H16+H17+H18 -> 534,892.50
A19: 14 | B19: 2025-10-17 | C19: 1216 | D19: 41264666028 | E19: ESTACION DE SERVICIO ATLAS SRL | F19: Combustible (Gasolina-gasoil) | G19: VS | H19: 211,599.50 | I19: 211,599.50 | J19: 0 | K19: 2025-12-03 | L19: PAGADA | M19: =H19 -> 211,599.50
A20: 15 | B20: 2025-08-08 | C20: 12018 | D20: 41264678926 | E20: LEROMED PHARMA SRL | F20: Productos medicinales para uso humano | G20: VS | H20: 151,579.00 | I20: 151,579.00 | J20: 0 | K20: 2025-12-03 | L20: PAGADA | M20: =H20 -> 151,579.00
A21: 16 | B21: 2025-06-16 | C21: 2987 | D21: 41272493969 | E21: RAMISOL SRL | F21: Productos medicinales para uso humano | G21: VS | H21: 244,875.00 | I21: 244,875.00 | J21: 0 | K21: 2025-12-04 | L21: PAGADA
A22: 17 | B22: 2025-10-28 | C22: 3528171 | D22: 41285406245 | E22: SEGUROS RESERVAS SA | F22: Renovacion poliza de seguro | G22: VS | H22: 97,746.32 | I22: 97,746.32 | J22: 0 | K22: 2025-12-05 | L22: PAGADA | M22: =H21+H22 -> 342,621.32
A23: 18 | B23: 2025-07-22 | C23: 2291 | D23: 41285418649 | E23: CABOD EIRL | F23: Útiles y Materiales de Limpieza | G23: VS | H23: 116,113.11 | I23: 116,113.11 | J23: 0 | K23: 2025-12-05 | L23: PAGADA
A24: 19 | B24: 2025-08-01 | C24: 2293 | D24: 41285425529 | E24: CABOD EIRL | F24: Útiles y Materiales de Limpieza | G24: VS | H24: 45,137.81 | I24: 45,137.81 | J24: 0 | K24: 2025-12-05 | L24: PAGADA | M24: =H23+H24 -> 161,250.92
A25: 20 | B25: 2025-10-20 | C25: 119 | D25: 41285452807 | E25: RAFAEL ABREU MARMOLEJOS | F25: Alimentos y bebidas a personas | G25: VS | H25: 244,895.00 | I25: 244,895.00 | J25: 0 | K25: 2025-12-05 | L25: PAGADA | M25: =H25 -> 244,895.00
A26: 21 | B26: 2025-07-23 | C26: 450000109 | D26: 41328463361 | E26: SUPLIMED SRL | F26: Útiles menores médico quirúrgicos | G26: VS | H26: 172,298.56 | I26: 172,298.56 | K26: 2025-12-11 | L26: PAGADA
A27: 22 | B27: 2025-06-02 | C27: 1059 | D27: 41328541307 | E27: GERENFAR SRL | F27: Productos medicinales para uso humano | G27: VS | H27: 212,400.00 | I27: 212,400.00 | K27: 2025-12-11 | L27: PAGADA | M27: =H26+H27 -> 384,698.56
A28: 23 | B28: 2025-06-11 | C28: 195 | D28: 41328635485 | E28: MORREAL CLINIC SRL | F28: Productos medicinales p/uso humano | G28: VS | H28: 231,000.00 | I28: 231,000.00 | K28: 2025-12-11 | L28: PAGADA
A29: 24 | B29: 2025-06-18 | C29: 8446 | D29: 41328671523 | E29: MORAMI SRL | F29: Productos medicinales p/uso humano | G29: VS | H29: 135,878.90 | I29: 135,878.90 | J29: 0 | K29: 2025-12-11 | L29: PAGADA | M29: =H28+H29 -> 366,878.90
A30: 25 | B30: 2025-07-23 | C30: 36181 | D30: 41328810549 | E30: CAPELLAN DENTAL SRL | F30: Productos medicinales para uso humano, Útiles menores médico quirúrgicos y productos quimicos de uso personal y de laboratorio | G30: VS | H30: 30,022.14 | I30: 30,022.14 | J30: 0 | K30: 2025-12-11 | L30: PAGADA | M30: =H30 -> 30,022.14
A31: 26 | B31: 2025-07-25 | C31: 512 | D31: 41328867198 | E31: CARMEN ARGENTINA ESPAILLAT LORA | F31: Útiles y Materiales de Limpieza | G31: VS | H31: 344,798.19 | I31: 344,798.19 | J31: 0 | K31: 2025-12-11 | L31: PAGADA | M31: =H31 -> 344,798.19
A32: 27 | B32: 2025-07-28 | C32: 513 | D32: 41330289373 | E32: CARMEN ARGENTINA ESPAILLAT LORA | F32: Útiles y Materiales de Limpieza | G32: VS | H32: 344,101.51 | I32: 344,101.51 | J32: 0 | K32: 2025-12-11 | L32: PAGADA | M32: =H32 -> 344,101.51
A33: 28 | B33: 2025-07-08 | C33: 45 | D33: 41330307111 | E33: CIRCUIMED SRL | F33: Maquinarias-herramientas | G33: VS | H33: 115,705.75 | I33: 115,705.75 | J33: 0 | K33: 2025-12-11 | L33: PAGADA | M33: =H33 -> 115,705.75
A34: 29 | B34: 2025-09-08 | C34: 2423508 | D34: 41330397985 | E34: AGUA RANGEL SRL | F34: Alimentos y bebidas a personas | G34: VS | H34: 33,250.00 | I34: 33,250.00 | J34: 0 | K34: 2025-12-11 | L34: PAGADA
A35: 30 | B35: 2025-09-25 | C35: 2436521 | D35: 41330413189 | E35: AGUA RANGEL SRL | F35: Alimentos y bebidas a personas | G35: VS | H35: 48,250.00 | I35: 48,250.00 | J35: 0 | K35: 2025-12-11 | L35: PAGADA | M35: =H34+H35 -> 81,500.00
A36: 31 | B36: 2025-08-01 | C36: 1132 | D36: 41330426169 | E36: GLOBAL MULTI PHARMA DOMINICANA THM SRL | F36: Productos medicinales para uso humano | G36: VS | H36: 99,000.00 | I36: 99,000.00 | J36: 0 | K36: 2025-12-11 | L36: PAGADA | M36: =H36 -> 99,000.00
A37: 32 | B37: 2025-10-27 | C37: 168 | D37: 41330444770 | E37: COMPAÑIA DOMINICANA DE TELEFONO S A | F37: Servicio de renta mensual de Flotas | G37: VS | H37: 73,964.49 | I37: 73,964.49 | J37: 0 | K37: 2025-12-11 | L37: PAGADA
A38: 33 | B38: 2025-10-25 | C38: 204 | D38: 41330473929 | E38: COMPAÑIA DOMINICANA DE TELEFONO S A | F38: Servicio de renta mensual de Telefono | G38: VS | H38: 195,173.07 | I38: 195,173.07 | J38: 0 | K38: 2025-12-11 | L38: PAGADA | M38: =H38 -> 195,173.07
A39: 34 | B39: 2025-08-26 | C39: 36884 | D39: 41364986216 | E39: BIO NOVA SRL | F39: Mantenimiento y reparaicion de vehiculo | G39: VS | H39: 52,476.00 | I39: 52,476.00 | J39: 0 | K39: 2025-12-11 | L39: PAGADA | M39: =H37+H39 -> 126,440.49
A40: 35 | B40: 2025-09-05 | C40: 36904 | D40: 41364961214 | E40: DISTRIBUIDORA PHARMAMON SRL | F40: Mantenimiento y reparaicion de vehiculo | G40: VS | H40: 98,000.00 | I40: 98,000.00 | J40: 0 | K40: 2025-12-11 | L40: PAGADA
A41: 36 | B41: 2025-09-25 | C41: 36951 | D41: 41365041020 | E41: CONSTRUCTORA ROHE SRL | F41: Mantenimiento y reparaicion de vehiculo | G41: VS | H41: 148,832.22 | I41: 148,832.22 | J41: 0 | K41: 2025-12-11 | L41: PAGADA
A42: 37 | B42: 2025-09-16 | C42: 99 | D42: 41334890538 | E42: ECONOMARKET ABEL ANDRES SRL | F42: Alimentos y bebidas a personas | G42: VS | H42: 902,081.11 | I42: 902,081.11 | J42: 0 | K42: 2025-12-12 | L42: PAGADA | M42: =H40+H41+H42 -> 1,148,913.33
A43: 38 | B43: 2025-08-18 | C43: 495 | D43: 41334967351 | E43: MAX BIO PHARMA SRL | F43: Útiles menores médico quirúrgicos | G43: VS | H43: 62,304.00 | I43: 62,304.00 | J43: 0 | K43: 2025-12-12 | L43: PAGADA | M43: =H43 -> 62,304.00
A44: 39 | B44: 2025-08-22 | C44: 3934306 | D44: 41335052168 | E44: FARMACIA EL SOL DE LA VEGA SRL | F44: Productos medicinales para uso humano | G44: VS | H44: 22,800.60 | I44: 22,800.60 | J44: 0 | K44: 2025-12-12 | L44: PAGADA | M44: =I44 -> 22,800.60
A45: 40 | B45: 2025-08-22 | C45: 301582 | D45: 41335123088 | E45: FARMACIA EL SOL DE LA VEGA SRL | F45: Productos medicinales para uso humano | G45: VS | H45: 3,827.00 | I45: 3,827.00 | J45: 0 | K45: 2025-12-12 | L45: PAGADA | M45: =I45 -> 3,827.00
A46: 41 | B46: 2025-07-21 | C46: 864 | D46: 41335239555 | E46: VANGUARDIA SALUD SRL | F46: Productos medicinales para uso humano y útiles menores médicos quirúrgicos | G46: VS | H46: 176,646.00 | I46: 176,646.00 | J46: 0 | K46: 2025-12-12 | L46: PAGADA | M46: =I46 -> 176,646.00
A47: 42 | B47: 2025-08-01 | C47: 90271627 | D47: 41335323498 | E47: MACROTECH FARMACEUTICA SRL | F47: Útiles menores médico quirúrgicos | G47: VS | H47: 179,561.26 | I47: 179,561.26 | K47: 2025-12-12 | L47: PAGADA
A48: 43 | B48: 2025-08-26 | C48: 36884 | D48: 41364986216 | E48: LUBRI GOMAS GONELL SRL | F48: Mantenimiento y reparaicion de vehiculo | G48: VS | H48: 57,230.00 | I48: 57,230.00 | J48: 0 | K48: 2025-12-16 | L48: PAGADA
A49: 44 | B49: 2025-09-05 | C49: 36904 | D49: 41364961214 | E49: LUBRI GOMAS GONELL SRL | F49: Mantenimiento y reparaicion de vehiculo | G49: VS | H49: 17,130.00 | I49: 17,130.00 | J49: 0 | K49: 2025-12-16 | L49: PAGADA | M49: =H48+H49 -> 74,360.00
A50: 45 | B50: 2025-09-25 | C50: 36951 | D50: 41365041020 | E50: LUBRI GOMAS GONELL SRL | F50: Mantenimiento y reparaicion de vehiculo | G50: VS | H50: 54,040.00 | I50: 54,040.00 | J50: 0 | K50: 2025-12-16 | L50: PAGADA | M50: =H50 -> 54,040.00
A51: 46 | B51: 2025-08-06 | C51: 5097 | D51: 41375462064 | E51: BRENMARFA IMPORT SRL | F51: útiles menores médicos quirúrgicos | G51: VS | H51: 239,757.12 | I51: 239,757.12 | J51: 0 | K51: 2025-12-17 | L51: PAGADA | M51: =H51 -> 239,757.12
A52: 47 | B52: 2025-08-11 | C52: 180049 | D52: 41390598873 | E52: FARMACIA RACHEL O & R SRL | F52: Equipo medico y de laboratorio | G52: VS | H52: 2,031,960.00 | I52: 2,031,960.00 | J52: 0 | K52: 2025-12-19 | L52: PAGADA | M52: =H52 -> 2,031,960.00
A53: 48 | B53: 2025-07-16 | C53: 16977 | D53: 41412725574 | E53: MAXIMOS SERVICIOS COMP. SRL (MAXSERCOMP) | F53: Útiles y materiales de escritorio, oficina e informática | G53: VS | H53: 564,657.34 | I53: 564,657.34 | J53: 0 | K53: 2025-12-22 | L53: PAGADA
A54: 49 | B54: 2025-08-27 | C54: 17142 | D54: 41412814617 | E54: MAXIMOS SERVICIOS COMP. SRL (MAXSERCOMP) | F54: Útiles y materiales de escritorio, oficina e informática | G54: VS | H54: 786,614.69 | I54: 786,614.69 | J54: 0 | K54: 2025-12-22 | L54: PAGADA
A55: 50 | B55: 2025-09-01 | C55: 182685 | D55: 41412924220 | E55: FARMACIA RACHEL O & R SRL | F55: Útiles menores médico quirúrgicos y equipo medico y de laboratorio | G55: VS | H55: 1,949,596.00 | I55: 1,949,596.00 | J55: 0 | K55: 2025-12-22 | L55: PAGADA
A56: 51 | B56: 2025-08-18 | C56: 78 | D56: 41413146167 | E56: INVERSIONES BJ SRL | F56: Productos medicinales p/uso humano | G56: VS | H56: 245,000.00 | I56: 245,000.00 | J56: 0 | K56: 2025-12-22 | L56: PAGADA
A57: 52 | B57: 2025-07-23 | C57: 8878 | D57: 41413333138 | E57: SILVER PHARMA SRL | F57: Productos medicinales para uso humano | G57: VS | H57: 247,500.00 | I57: 247,500.00 | J57: 0 | K57: 2025-12-22 | L57: PAGADA
A58: 53 | B58: 2025-07-16 | C58: 7308 | D58: 41413482711 | E58: ZEN PHARMACEUTHICAL SRL | F58: Útiles menores médico quirúrgicos | G58: VS | H58: 218,003.23 | I58: 218,003.23 | J58: 0 | K58: 2025-12-22 | L58: PAGADA
A59: 54 | B59: 2025-08-22 | C59: 15755 | D59: 41414077734 | E59: PRODUCTOS MEDICINALES SRL (PROMEDCA) | F59: Útiles menores médico quirúrgicos | G59: VS | H59: 210,276.00 | I59: 210,276.00 | J59: 0 | K59: 2025-12-22 | L59: PAGADA
A60: 55 | B60: 2025-08-01 | C60: 15728 | D60: 41414187866 | E60: PRODUCTOS MEDICINALES SRL (PROMEDCA) | F60: Útiles menores médico quirúrgicos | G60: VS | H60: 239,009.00 | I60: 239,009.00 | J60: 0 | K60: 2025-12-22 | L60: PAGADA
A61: 56 | B61: 2025-08-05 | C61: 242 | D61: 41414226739 | E61: MORREAL CLINIC SRL | F61: Productos medicinales para uso humano y Útiles menores médico quirúrgicos | G61: VS | H61: 246,998.00 | I61: 246,998.00 | J61: 0 | K61: 2025-12-22 | L61: PAGADA
A62: 57 | B62: 2025-08-18 | C62: 5159 | D62: 41414276164 | E62: BRENMARFA IMPORT SRL | F62: útiles menores médicos quirúrgicos | G62: VS | H62: 950,000.00 | I62: 950,000.00 | J62: 0 | K62: 2025-12-22 | L62: PAGADA
A63: 58 | B63: 2025-07-28 | C63: 228 | D63: 41415221407 | E63: CONSTRUCTORA ROHE SRL | F63: Reparación y Mantenimiento Maquinaria y Equipos | G63: VS | H63: 244,998.68 | I63: 244,998.68 | J63: 0 | K63: 2025-12-22 | L63: PAGADA
A64: 59 | B64: 2025-11-01 | C64: 1015881 | D64: 41415474474 | E64: AYUNTAMIENTO MUNICIPAL DE LA VEGA | F64: Recoleccion de residuos | G64: VS | H64: 5,000.00 | I64: 5,000.00 | J64: 0 | K64: 2025-12-22 | L64: PAGADA
A65: 60 | B65: 2025-08-01 | C65: 2024 | D65: 41416612677 | E65: A&S IMPORTADORA MEDICA SRL | F65: Productos medicinales para uso humano | G65: VS | H65: 247,500.00 | I65: 247,500.00 | K65: 2025-12-22 | L65: PAGADA
A66: 61 | B66: 2025-08-01 | C66: 2103 | D66: 41416640090 | E66: EPX DOMINICANA SRL | F66: Productos medicinales para uso humano | G66: VS | H66: 248,000.00 | I66: 248,000.00 | K66: 2025-12-22 | L66: PAGADA
A67: 62 | B67: 2025-07-16 | C67: 1044371 | D67: 41416668585 | E67: CRUZ AYALA S.R.L | F67: Reactivos del laboratorio | G67: VS | H67: 21,933.40 | I67: 21,933.40 | K67: 2025-12-22 | L67: PAGADA
A68: 63 | B68: 2025-08-07 | C68: 422 | D68: 41416721786 | E68: HCJ LOGISTICS SRL | F68: Servicio de programa de informatica | G68: VS | H68: 141,600.00 | I68: 141,600.00 | K68: 2025-12-22 | L68: PAGADA
A69: 64 | B69: 2025-08-20 | C69: 50738 | D69: 41416810540 | E69: OFFICE MULTI SERVICES CASTILLO SUAREZ SRL | F69: Mantenimiento y reparacion de impresoras | G69: VS | H69: 78,700.00 | I69: 78,700.00 | K69: 2025-12-22 | L69: PAGADA
A70: 65 | B70: 2025-08-01 | C70: 3201 | D70: 41416868880 | E70: RAMISOL SRL | F70: Productos medicinales para uso humano | G70: VS | H70: 245,000.00 | I70: 245,000.00 | K70: 2025-12-22 | L70: PAGADA
A71: 66 | B71: 2025-08-01 | C71: 3200 | D71: 41424130327 | E71: RAMISOL SRL | F71: Productos medicinales para uso humano | G71: VS | H71: 245,000.00 | I71: 245,000.00 | K71: 2025-12-23 | L71: PAGADA
A72: 67 | B72: 2025-08-01 | C72: FACT.#3202 | D72: 41425606421 | E72: RAMISOL SRL | F72: equipos medicos y de laboraatorio | G72: VS | H72: 95,639.00 | I72: 95,639.00 | K72: 2025-12-23 | L72: PAGADA
A73: 68 | B73: 2025-08-20 | C73: FACT.#107 | D73: 41425679377 | E73: JHMV ELECTRIC SERVICES SRL | F73: Reparación y Mantenimiento Maquinaria y Equipos | G73: VS | H73: 168,976.00 | I73: 168,976.00 | K73: 2025-12-23 | L73: PAGADA
A74: 69 | B74: 2025-07-22 | C74: FACT.#618720 | D74: 41425799488 | E74: ALFONSO DENTAL SRL | F74: Útiles menores médico quirúrgicos | G74: VS | H74: 69,850.01 | I74: 69,850.01 | K74: 2025-12-23 | L74: PAGADA
A75: 70 | B75: 2025-08-19 | C75: FACT.#11451 | D75: 41428585410 | E75: JEAN CARLOS BASULTO LOPEZ | F75: utiles menores medico quirurgico | G75: VS | H75: 220,029.96 | I75: 220,029.96 | K75: 2025-12-23 | L75: PAGADA
A76: 71 | B76: 2025-10-07 | C76: FACT.#159 | D76: 41428707279 | E76: WILTON GEOVANNY GARCIA | F76: Impresión y encuadernación | G76: VS | H76: 75,874.00 | I76: 75,874.00 | K76: 2025-12-23 | L76: PAGADA
A77: 72 | B77: 2025-10-01 | C77: FACT.#3945528 | D77: 41428783689 | E77: CORPORACION DEL ACUEDUCTO Y ALCANTARILLADO DE LA VEGA (CORAAVEGA) | F77: Agua potable y alcantarillado | G77: VS | H77: 47,987.00 | I77: 47,987.00 | K77: 2025-12-23 | L77: PAGADA
A78: 73 | B78: 2025-08-06 | C78: FACT.#1137 | D78: 41429310379 | E78: SERVICIOS HOSPITALARIOS R & L SRL | F78: Productos medicinales para uso humano | G78: VS | H78: 247,750.00 | I78: 247,750.00 | K78: 2025-12-23 | L78: PAGADA
A79: 74 | B79: 2025-06-09 | C79: FACT.#2356 | D79: 41429352500 | E79: DELMEDICAL SRL | F79: Productos medicinales para uso humano | G79: VS | H79: 247,506.00 | I79: 247,506.00 | K79: 2025-12-23 | L79: PAGADA
A80: 75 | B80: 2025-06-23 | C80: FACT.#2400 | D80: 41429371061 | E80: DELMEDICAL SRL | F80: Útiles menores médico quirúrgicos | G80: VS | H80: 166,232.50 | I80: 166,232.50 | K80: 2025-12-23 | L80: PAGADA
A81: 76 | B81: 2024-04-09 | C81: FACT.#108539 | D81: 41434263318 | E81: AIR LIQUIDE DOMINICANA SAS | F81: AIR LIQUIDE DOMINICANA SAS | G81: VS | H81: 4,423.23 | I81: 4,423.23 | K81: 2025-12-24 | L81: PAGADA
A82: 77 | B82: 2024-04-19 | C82: FACT.#109151 | D82: 41434490338 | E82: AIR LIQUIDE DOMINICANA SAS | F82: AIR LIQUIDE DOMINICANA SAS | G82: VS | H82: 716,206.66 | I82: 716,206.66 | K82: 2025-12-24 | L82: PAGADA
A83: 78 | B83: 2024-05-07 | C83: FACT.#110188 | D83: 41434616386 | E83: AIR LIQUIDE DOMINICANA SAS | F83: AIR LIQUIDE DOMINICANA SAS | G83: VS | H83: 3,538.58 | I83: 3,538.58 | K83: 2025-12-24 | L83: PAGADA
A84: 79 | B84: 2024-05-07 | C84: FACT.#110294 | D84: 41434650899 | E84: AIR LIQUIDE DOMINICANA SAS | F84: AIR LIQUIDE DOMINICANA SAS | G84: VS | H84: 4,423.23 | I84: 4,423.23 | K84: 2025-12-24 | L84: PAGADA
A85: 80 | B85: 2024-05-08 | C85: FACT.#110158 | D85: 41434727246 | E85: AIR LIQUIDE DOMINICANA SAS | F85: AIR LIQUIDE DOMINICANA SAS | G85: VS | H85: 773,246.92 | I85: 773,246.92 | K85: 2025-12-24 | L85: PAGADA
A86: 81 | B86: 2024-05-09 | C86: FACT.#110298 | D86: 41434804254 | E86: AIR LIQUIDE DOMINICANA SAS | F86: AIR LIQUIDE DOMINICANA SAS | G86: VS | H86: 8,157.58 | I86: 8,157.58 | K86: 2025-12-24 | L86: PAGADA
A87: 82 | B87: 2024-05-24 | C87: FACT.#111331 | D87: 41434913297 | E87: AIR LIQUIDE DOMINICANA SAS | F87: AIR LIQUIDE DOMINICANA SAS | G87: VS | H87: 672,407.90 | I87: 672,407.90 | K87: 2025-12-24 | L87: PAGADA
A88: 83 | B88: 2024-05-28 | C88: FACT.#111460 | D88: 41434951449 | E88: AIR LIQUIDE DOMINICANA SAS | F88: AIR LIQUIDE DOMINICANA SAS | G88: VS | H88: 6,192.52 | I88: 6,192.52 | K88: 2025-12-24 | L88: PAGADA
A89: 84 | B89: 2025-08-04 | C89: FACT.#38528 | D89: 41435259425 | E89: SEAN DOMINICANA SRL | F89: Productos medicinales para uso humano | G89: VS | H89: 180,000.00 | I89: 180,000.00 | K89: 2025-12-24 | L89: PAGADA
A90: 85 | B90: 2025-08-13 | C90: FACT.#38717 | D90: 41436427410 | E90: SEAN DOMINICANA SRL | F90: Productos medicinales para uso humano | G90: VS | H90: 271,250.00 | I90: 271,250.00 | K90: 2025-12-24 | L90: PAGADA
A91: 86 | B91: 2025-07-04 | C91: FACT.#9000068894 | D91: 41436469446 | E91: BIO NUCLEAR S A | F91: Reactivos del laboratorio | G91: VS | H91: 52,130.65 | I91: 52,130.65 | K91: 2025-12-24 | L91: PAGADA
A92: 87 | B92: 2025-07-10 | C92: FACT.#9000069459 | D92: 41436482129 | E92: BIO NUCLEAR S A | F92: Reactivos del laboratorio | G92: VS | H92: 6,810.96 | I92: 6,810.96 | K92: 2025-12-24 | L92: PAGADA
A93: 88 | B93: 2025-07-24 | C93: FACT.#9000070742 | D93: 41436505498 | E93: BIO NUCLEAR S A | F93: Reactivos del laboratorio | G93: VS | H93: 7,549.00 | I93: 7,549.00 | K93: 2025-12-24 | L93: PAGADA
A94: 89 | B94: 2025-08-21 | C94: FACT.#1045516 | D94: 41436555391 | E94: CRUZ AYALA SRL | F94: útiles menores médicos quirúrgicos | G94: VS | H94: 220,000.00 | I94: 220,000.00 | K94: 2025-12-24 | L94: PAGADA
A95: 90 | B95: 2025-07-29 | C95: FACT.#514 | D95: 41436609093 | E95: CARMEN ARGENTINA ESPAILLAT LORA | F95: Útiles y Materiales de Limpieza | G95: VS | H95: 344,850.28 | I95: 344,850.28 | K95: 2025-12-24 | L95: PAGADA
A96: 91 | B96: 2025-09-11 | C96: 824 | D96: 41436710694 | E96: LUZ ESTHER BAUTISTA | F96: Útiles menores médico quirúrgicos | G96: VS | H96: 467,250.50 | I96: 467,250.50 | K96: 2025-12-24 | L96: PAGADA
A97: Total TNT | F97: TOTAL FACTURAS PAGADAS | H97: =SUM(H6:H96) -> 22,057,100.18 | I97: =SUM(I6:I96) -> 22,057,100.18
A108: Directora | F108: Administradora | J108: Contadora

Sheet A PAGAR
A3: RELACION DE FACTURAS A PAGAR DE LOS MESES MARZO 2024 Y MAYO/JUNIO/JULIO/AGOSTO /SEPTIEMBRE/OCTUBRE/NOVIEMBRE 2025
A6: No. | B6: FECHA DE FACTURA | C6: NO. DE FACTURA O COMPROBANTE | D6: SUPLIDOR | E6: CONCEPTO | F6: FUENTE DE FINANCIAMIENTO | G6: MONTO FACTURA | H6: ESTADO
A7: 1 | B7: 2025-05-14 | C7: 6947 | D7: ZEN PHARMACEUTICAL SRL | E7: Útiles menores médico quirúrgicos | F7: VS | G7: 247,281.20 | H7: PAGADA
A8: 2 | B8: 2025-06-02 | C8: 1059 | D8: GERENFAR SRL | E8: Productos medicinales para uso humano | F8: VS | G8: 212,400.00 | H8: PAGADA
A9: 3 | B9: 2025-07-09 | C9: 1028174 | D9: ALMANZSAR ESTEVEZ SRL | E9: Reactivos del laboratorio | F9: VS | G9: 29,240.58 | H9: PAGADA
A10: 4 | B10: 2025-08-01 | C10: 1028236 | D10: ALMANZSAR ESTEVEZ SRL | E10: Reactivos del laboratorio | F10: VS | G10: 44,827.02 | H10: PAGADA
A11: 5 | B11: 2025-08-27 | C11: 1028315 | D11: ALMANZSAR ESTEVEZ SRL | E11: Reactivos del laboratorio | F11: VS | G11: 23,155.26 | H11: PAGADA
A12: 6 | B12: 2025-09-08 | C12: 2423508 | D12: AGUA RANGEL SRL | E12: Alimentos y bebidas a personas | F12: VS | G12: 33,250.00 | H12: PAGADA
A13: 7 | B13: 2025-09-25 | C13: 2436521 | D13: AGUA RANGEL SRL | E13: Alimentos y bebidas a personas | F13: VS | G13: 48,250.00 | H13: PAGADA
A14: 8 | B14: 2025-07-23 | C14: 36181 | D14: CAPELLAN DENTAL SRL | E14: Productos medicinales para uso humano, Útiles menores médico quirúrgicos y productos quimicos de uso personal y de laboratorio | F14: VS | G14: 30,022.14 | H14: PAGADA
A15: 9 | B15: 2025-07-22 | C15: 2291 | D15: CABOD EIRL | E15: Útiles y Materiales de Limpieza | F15: VS | G15: 116,113.11 | H15: PAGADA
A16: 10 | B16: 2025-08-01 | C16: 2293 | D16: CABOD EIRL | E16: Útiles y Materiales de Limpieza | F16: VS | G16: 45,137.81 | H16: PAGADA
A17: 11 | B17: 2025-07-08 | C17: 9980 | D17: COPEM HOSPICLINIC SRL | E17: Productos medicinales para uso humano | F17: VS | G17: 231,000.00 | H17: PAGADA
A18: 12 | B18: 2025-07-17 | C18: 11845 | D18: HEXAPOWER PHARMA SRL | E18: Productos medicinales para uso humano | F18: VS | G18: 247,700.00 | H18: PAGADA
A19: 13 | B19: 2025-07-21 | C19: 864 | D19: VANGUARDIA SALUD SRL | E19: Productos medicinales para uso humano y útiles menores médicos quirúrgicos | F19: VS | G19: 176,646.00 | H19: PAGADA
A20: 14 | B20: 2024-03-14 | C20: 107127 | D20: AIR LIQUIDE DOMINICANA SAS | E20: Oxigeno Medicinal | F20: VS | G20: 520,640.07 | H20: PAGADA
A21: 15 | B21: 2024-03-20 | C21: 107438 | D21: AIR LIQUIDE DOMINICANA SAS | E21: Oxigeno Medicinal | F21: VS | G21: 7,961.81 | H21: PAGADA
A22: 16 | B22: 2024-03-26 | C22: 107856 | D22: AIR LIQUIDE DOMINICANA SAS | E22: Oxigeno Medicinal | F22: VS | G22: 754,403.26 | H22: PAGADA
A23: 17 | B23: 2025-09-16 | C23: 99 | D23: ECONOMARKET ABEL ANDRES SRL | E23: Alimentos y bebidas a personas | F23: VS | G23: 902,081.11 | H23: PAGADA
A24: 18 | B24: 2025-07-25 | C24: 512 | D24: CARMEN ARGENTINA ESPAILLAT LORA | E24: Útiles y Materiales de Limpieza | F24: VS | G24: 344,798.19 | H24: PAGADA
A25: 19 | B25: 2025-07-28 | C25: 513 | D25: CARMEN ARGENTINA ESPAILLAT LORA | E25: Útiles y Materiales de Limpieza | F25: VS | G25: 344,101.51 | H25: PAGADA
A26: 20 | B26: 2025-10-17 | C26: 1216 | D26: ESTACION DE SERVICIO ATLAS SRL | E26: Combustible (Gasolina-gasoil) | F26: VS | G26: 211,599.50 | H26: PAGADA
A27: 21 | B27: 2025-07-14 | C27: 10009456 | D27: VEGA ABREU CLEAN SRL | E27: Útiles y Materiales de Limpieza | F27: VS | G27: 215,771.50 | H27: PAGADA
A28: 22 | B28: 2025-07-07 | C28: 227 | D28: CONSTRUCTORA ROHE SRL | E28: Reparación y Mantenimiento Maquinaria y Equipos | F28: VS | G28: 148,832.22 | H28: PAGADA
A29: 23 | B29: 2025-07-08 | C29: 45 | D29: CIRCUIMED SRL | E29: Maquinarias-herramientas | F29: VS | G29: 115,705.75 | H29: PAGADA
A30: 24 | B30: 2025-07-23 | C30: 450000109 | D30: SUPLIMED SRL | E30: Útiles menores médico quirúrgicos | F30: VS | G30: 172,298.56 | H30: PAGADA
A31: 25 | B31: 2025-06-16 | C31: 2987 | D31: RAMISOL SRL | E31: Productos medicinales para uso humano | F31: VS | G31: 244,875.00 | H31: PAGADA
A32: 26 | B32: 2025-07-22 | C32: 175 | D32: RADLAFE GROUP SRL | E32: Útiles menores médico quirúrgicos | F32: VS | G32: 7,896.00 | H32: PAGADA
A33: 27 | B33: 2025-08-15 | C33: 195 | D33: RADLAFE GROUP SRL | E33: Útiles menores médico quirúrgicos | F33: VS | G33: 231,565.00 | H33: PAGADA
A34: 28 | B34: 2025-08-22 | C34: 3934306 | D34: FARMACIA EL SOL DE LA VEGA SRL | E34: Productos medicinales para uso humano | F34: VS | G34: 22,800.60 | H34: PAGADA
A35: 29 | B35: 2025-08-22 | C35: 301582 | D35: FARMACIA EL SOL DE LA VEGA SRL | E35: Productos medicinales para uso humano | F35: VS | G35: 3,827.00 | H35: PAGADA
A36: 30 | B36: 2025-08-01 | C36: 1132 | D36: GLOBAL MULTI PHARMA DOMINICANA THM SRL | E36: Productos medicinales para uso humano | F36: VS | G36: 99,000.00 | H36: PAGADA
A37: 31 | B37: 2025-08-08 | C37: 12018 | D37: LEROMED PHARMA SRL | E37: Productos medicinales para uso humano | F37: VS | G37: 151,579.00 | H37: PAGADA
A38: 32 | B38: 2025-10-25 | C38: 204 | D38: COMPAÑIA DOMINICANA DE TELEFONO S A | E38: Servicio de renta mensual de Telefono | F38: VS | G38: 195,173.07 | H38: PAGADA
A39: 33 | B39: 2025-10-27 | C39: 168 | D39: COMPAÑIA DOMINICANA DE TELEFONO S A | E39: Servicio de renta mensual de Flotas | F39: VS | G39: 73,964.49 | H39: PAGADA
A40: 34 | B40: 2025-08-13 | C40: 750 | D40: HAUSPITAL SRL | E40: Útiles menores médico quirúrgicos | F40: VS | G40: 87,556.00 | H40: PAGADA
A41: 35 | B41: 2025-08-01 | C41: 218 | D41: DISTRIBUIDORA PHARMAMON SRL | E41: Útiles menores médico quirúrgicos | F41: VS | G41: 98,000.00 | H41: PAGADA
A42: 36 | B42: 2025-08-18 | C42: 495 | D42: MAX BIO PHARMA SRL | E42: Útiles menores médico quirúrgicos | F42: VS | G42: 62,304.00 | H42: PAGADA
A43: 37 | B43: 2025-08-07 | C43: 422 | D43: HCJ LOGISTICS SRL | E43: Servicio de programa de informatica | F43: VS | G43: 141,600.00 | H43: PAGADA
A44: 38 | B44: 2025-08-01 | C44: 90271627 | D44: MACROTECH FARMACEUTICA SRL | E44: Útiles menores médico quirúrgicos | F44: VS | G44: 179,561.26 | H44: PAGADA
A45: 39 | B45: 2025-08-20 | C45: 61667 | D45: BIO NOVA SRL | E45: Reactivos del laboratorio | F45: VS | G45: 52,476.00 | H45: PAGADA
A46: 40 | B46: 2025-10-20 | C46: 119 | D46: RAFAEL ABREU MARMOLEJOS | E46: Alimentos y bebidas a personas | F46: VS | G46: 244,895.00 | H46: PAGADA
A47: 41 | B47: 2025-10-28 | C47: 3528171 | D47: SEGUROS RESERVAS SA | E47: Renovacion poliza de seguro | F47: VS | G47: 97,746.32 | H47: PAGADA
A48: 42 | B48: 2025-08-06 | C48: 5097 | D48: BRENMARFA IMPORT SRL | E48: útiles menores médicos quirúrgicos | F48: VS | G48: 239,757.12 | H48: PAGADA
A49: 43 | B49: 2025-08-18 | C49: 78 | D49: INVERSIONES BJ SRL | E49: Productos medicinales p/uso humano | F49: VS | G49: 245,000.00 | H49: PAGADA
A50: 44 | B50: 2025-06-18 | C50: 8446 | D50: MORAMI SRL | E50: Productos medicinales p/uso humano | F50: VS | G50: 135,878.90 | H50: PAGADA
A51: 45 | B51: 2025-06-11 | C51: 195 | D51: MORREAL CLINIC SRL | E51: Productos medicinales p/uso humano | F51: VS | G51: 231,000.00 | H51: PAGADA
A52: 46 | B52: 2025-08-26 | C52: 36884 | D52: LUBRI GOMAS GONELL SRL | E52: Mantenimiento y reparaicion de vehiculo | F52: VS | G52: 57,230.00 | H52: PAGADA
A53: 47 | B53: 2025-09-05 | C53: 36904 | D53: LUBRI GOMAS GONELL SRL | E53: Mantenimiento y reparaicion de vehiculo | F53: VS | G53: 17,130.00 | H53: PAGADA
A54: 48 | B54: 2025-09-25 | C54: 36951 | D54: LUBRI GOMAS GONELL SRL | E54: Mantenimiento y reparaicion de vehiculo | F54: VS | G54: 54,040.00 | H54: PAGADA
A55: 49 | B55: 2025-08-11 | C55: 180049 | D55: FARMACIA RACHEL O & R SRL | E55: Equipo medico y de laboratorio | F55: VS | G55: 2,031,960.00 | H55: PAGADA
A56: 50 | B56: 2025-07-16 | C56: 16977 | D56: MAXIMOS SERVICIOS COMP. SRL (MAXSERCOMP) | E56: Útiles y materiales de escritorio, oficina e informática | F56: VS | G56: 564,657.34 | H56: PAGADA
A57: 51 | B57: 2025-08-27 | C57: 17142 | D57: MAXIMOS SERVICIOS COMP. SRL (MAXSERCOMP) | E57: Útiles y materiales de escritorio, oficina e informática | F57: VS | G57: 786,614.69 | H57: PAGADA
A58: 52 | B58: 2025-09-01 | C58: 182685 | D58: FARMACIA RACHEL O & R SRL | E58: Útiles menores médico quirúrgicos y equipo medico y de laboratorio | F58: VS | G58: 1,949,596.00 | H58: PAGADA
A59: 54 | B59: 2025-07-23 | C59: 8878 | D59: SILVER PHARMA SRL | E59: Productos medicinales para uso humano | F59: VS | G59: 247,500.00 | H59: PAGADA
A60: 55 | B60: 2025-07-16 | C60: 7308 | D60: ZEN PHARMACEUTHICAL SRL | E60: Útiles menores médico quirúrgicos | F60: VS | G60: 218,003.23 | H60: PAGADA
A61: 56 | B61: 2025-08-22 | C61: 15755 | D61: PRODUCTOS MEDICINALES SRL (PROMEDCA) | E61: Útiles menores médico quirúrgicos | F61: VS | G61: 210,276.00 | H61: PAGADA
A62: 57 | B62: 2025-08-01 | C62: 15728 | D62: PRODUCTOS MEDICINALES SRL (PROMEDCA) | E62: Útiles menores médico quirúrgicos | F62: VS | G62: 239,009.00 | H62: PAGADA
A63: 58 | B63: 2025-08-05 | C63: 242 | D63: MORREAL CLINIC SRL | E63: Productos medicinales para uso humano y Útiles menores médico quirúrgicos | F63: VS | G63: 246,998.00 | H63: PAGADA
A64: 59 | B64: 2025-08-18 | C64: 5159 | D64: BRENMARFA IMPORT SRL | E64: útiles menores médicos quirúrgicos | F64: VS | G64: 950,000.00 | H64: PAGADA
A65: 60 | B65: 2025-07-28 | C65: 228 | D65: CONSTRUCTORA ROHE SRL | E65: Reparación y Mantenimiento Maquinaria y Equipos | F65: VS | G65: 244,998.68 | H65: PAGADA
A66: 61 | B66: 2025-11-01 | C66: 1015881 | D66: AYUNTAMIENTO MUNICIPAL DE LA VEGA | E66: Recoleccion de residuos | F66: VS | G66: 5,000.00 | H66: PAGADA
A67: 62 | B67: 2025-08-01 | C67: 2024 | D67: A&S IMPORTADORA MEDICA SRL | E67: Productos medicinales para uso humano | F67: VS | G67: 247,500.00 | H67: PAGADA
A68: 63 | B68: 2025-08-01 | C68: 2103 | D68: EPX DOMINICANA SRL | E68: Productos medicinales para uso humano | F68: VS | G68: 248,000.00 | H68: PAGADA
A69: 64 | B69: 2025-07-16 | C69: 1044371 | D69: CRUZ AYALA S.R.L | E69: Reactivos del laboratorio | F69: VS | G69: 21,933.40 | H69: PAGADA
A70: 66 | B70: 2025-08-20 | C70: 50738 | D70: OFFICE MULTI SERVICES CASTILLO SUAREZ SRL | E70: Mantenimiento y reparacion de impresoras | F70: VS | G70: 78,700.00 | H70: PAGADA
A71: 67 | B71: 2025-08-01 | C71: 3201 | D71: RAMISOL SRL | E71: Productos medicinales para uso humano | F71: VS | G71: 245,000.00 | H71: PAGADA
B72: 2025-08-01 | C72: 3200 | D72: RAMISOL SRL | E72: Productos medicinales para uso humano | F72: VS | G72: 245,000.00 | H72: PAGADA
B73: 2025-08-01 | C73: FACT.#3202 | D73: RAMISOL SRL | E73: equipos medicos y de laboraatorio | F73: VS | G73: 95,639.00
B74: 2025-08-20 | C74: FACT.#107 | D74: JHMV ELECTRIC SERVICES SRL | E74: Reparación y Mantenimiento Maquinaria y Equipos | F74: VS | G74: 168,976.00
B75: 2025-07-22 | C75: FACT.#618720 | D75: ALFONSO DENTAL SRL | E75: Útiles menores médico quirúrgicos | F75: VS | G75: 69,850.01
B76: 2025-08-19 | C76: FACT.#11451 | D76: JEAN CARLOS BASULTO LOPEZ | E76: utiles menores medico quirurgico | F76: VS | G76: 220,029.96
B77: 2025-10-07 | C77: FACT.#159 | D77: WILTON GEOVANNY GARCIA | E77: Impresión y encuadernación | F77: VS | G77: 75,874.00
B78: 2025-10-01 | C78: FACT.#3945528 | D78: CORPORACION DEL ACUEDUCTO Y ALCANTARILLADO DE LA VEGA (CORAAVEGA) | E78: Agua potable y alcantarillado | F78: VS | G78: 47,987.00
B79: 2025-08-06 | C79: FACT.#1137 | D79: SERVICIOS HOSPITALARIOS R & L SRL | E79: Productos medicinales para uso humano | F79: VS | G79: 247,750.00
B80: 2025-06-09 | C80: FACT.#2356 | D80: DELMEDICAL SRL | E80: Productos medicinales para uso humano | F80: VS | G80: 247,506.00
B81: 2025-06-23 | C81: FACT.#2400 | D81: DELMEDICAL SRL | E81: Útiles menores médico quirúrgicos | F81: VS | G81: 166,232.50
B82: 2024-04-09 | C82: FACT.#108539 | D82: AIR LIQUIDE DOMINICANA SAS | E82: AIR LIQUIDE DOMINICANA SAS | F82: VS | G82: 4,423.23
B83: 2024-04-19 | C83: FACT.#109151 | D83: AIR LIQUIDE DOMINICANA SAS | E83: AIR LIQUIDE DOMINICANA SAS | F83: VS | G83: 716,206.66
B84: 2024-05-07 | C84: FACT.#110188 | D84: AIR LIQUIDE DOMINICANA SAS | E84: AIR LIQUIDE DOMINICANA SAS | F84: VS | G84: 3,538.58
B85: 2024-05-07 | C85: FACT.#110294 | D85: AIR LIQUIDE DOMINICANA SAS | E85: AIR LIQUIDE DOMINICANA SAS | F85: VS | G85: 4,423.23
B86: 2024-05-08 | C86: FACT.#110158 | D86: AIR LIQUIDE DOMINICANA SAS | E86: AIR LIQUIDE DOMINICANA SAS | F86: VS | G86: 773,246.92
B87: 2024-05-09 | C87: FACT.#110298 | D87: AIR LIQUIDE DOMINICANA SAS | E87: AIR LIQUIDE DOMINICANA SAS | F87: VS | G87: 8,157.58
B88: 2024-05-24 | C88: FACT.#111331 | D88: AIR LIQUIDE DOMINICANA SAS | E88: AIR LIQUIDE DOMINICANA SAS | F88: VS | G88: 672,407.90
B89: 2024-05-28 | C89: FACT.#111460 | D89: AIR LIQUIDE DOMINICANA SAS | E89: AIR LIQUIDE DOMINICANA SAS | F89: VS | G89: 6,192.52
B90: 2025-08-04 | C90: FACT.#38528 | D90: SEAN DOMINICANA SRL | E90: Productos medicinales para uso humano | F90: VS | G90: 180,000.00
B91: 2025-08-13 | C91: FACT.#38717 | D91: SEAN DOMINICANA SRL | E91: Productos medicinales para uso humano | F91: VS | G91: 271,250.00
B92: 2025-07-04 | C92: FACT.#9000068894 | D92: BIO NUCLEAR S A | E92: Reactivos del laboratorio | F92: VS | G92: 52,130.65
B93: 2025-07-10 | C93: FACT.#9000069459 | D93: BIO NUCLEAR S A | E93: Reactivos del laboratorio | F93: VS | G93: 6,810.96
B94: 2025-07-24 | C94: FACT.#9000070742 | D94: BIO NUCLEAR S A | E94: Reactivos del laboratorio | F94: VS | G94: 7,549.00
B95: 2025-08-21 | C95: FACT.#1045516 | D95: CRUZ AYALA SRL | E95: útiles menores médicos quirúrgicos | F95: VS | G95: 220,000.00
B96: 2025-07-29 | C96: FACT.#514 | D96: CARMEN ARGENTINA ESPAILLAT LORA | E96: Útiles y Materiales de Limpieza | F96: VS | G96: 344,850.28
B97: 2025-09-11 | C97: 824 | D97: LUZ ESTHER BAUTISTA | E97: Útiles menores médico quirúrgicos | F97: VS | G97: 467,250.50
A98: Total TNT | E98: TOTAL FACTURAS PAGADAS | G98: =SUM(G7:G97) -> 22,057,100.18
G100: 22,057,100.18
G101: =G100-G98 -> 0
A109: Directora | E109: Administradora
